bitfinex/quotes_SOLUSD_20240614
["timestamp","ask_amount","ask_price","bid_price","bid_amount"]
[1718358715433,0.33333333,148.04,148.0,6.12]
[1718358715926,0.17,148.03,147.94,22.6501]
[1718358716126,0.34,148.03,147.94,22.6501]
[1718358716324,0.34,148.03,147.98,6.12]
[1718358717633,0.34,148.03,147.99,6.12]
[1718358718631,15.7794,148.05,147.94,22.6501]
[1718358718814,15.6094,148.05,148.01,6.12]
[1718358720010,15.6094,148.05,148.0,6.12]
[1718358720731,15.6094,148.05,147.95,45.34]
[1718358721027,15.6094,148.05,147.99,6.12]
[1718358721028,10.0,148.01,147.99,6.12]
[1718358721333,2.5009,147.95,147.91,24.48]
[1718358721508,5.001,147.97,147.94,6.12]
[1718358721839,5.001,147.97,147.96,6.12]
[1718358722209,10.001,147.99,147.96,6.12]
[1718358722414,10.001,147.99,147.98,6.12]
[1718358723016,100.0,148.03,147.92,0.34]
[1718358723218,10.0,147.98,147.97,6.12]
[1718358724418,10.0,148.0,147.97,6.12]
[1718358724622,45.0,147.99,147.98,6.12]
[1718358724829,45.0,147.99,147.92,15.8954]
[1718358725137,45.0,147.99,147.98,6.12]
[1718358725530,45.0,147.99,147.97,6.12]
[1718358725839,10.0,147.98,147.97,6.12]
[1718358729019,55.0,147.98,147.97,6.12]
[1718358730136,55.0,147.98,147.96,6.12]
[1718358734129,55.0,147.98,147.93,20.0]
[1718358734448,55.0,147.98,147.96,6.12]
[1718358738450,55.0,147.98,147.93,20.0]
[1718358738650,10.0,147.96,147.95,6.12]
[1718358751179,10.0,147.98,147.95,6.12]
[1718358751341,10.0,147.98,147.97,6.12]
[1718358751543,55.0,147.98,147.97,6.12]
[1718358752034,45.0,147.98,147.97,6.12]
[1718358752361,10.0,148.0,147.97,6.12]
[1718358752549,45.0,147.99,147.98,6.12]
[1718358753863,10.0,147.98,147.92,15.8954]
[1718358754171,10.0,147.96,147.95,6.12]
[1718358754534,10.0,147.96,147.91,24.48]
[1718358754960,10.0,147.96,147.93,6.12]
[1718358755147,45.0,147.95,147.93,6.12]
[1718358755647,10.0,147.94,147.93,6.12]
[1718358757651,10.0,147.94,147.88,32.54859246]
[1718358757950,10.0,147.94,147.89,20.0]
[1718358758366,10.0,147.94,147.93,6.12]
[1718358759667,10.0,147.92,147.89,20.0]
[1718358759864,10.0,147.92,147.91,6.12]
[1718358771075,10.0,147.94,147.91,6.12]
[1718358771468,10.0,147.94,147.93,6.12]
[1718358780287,10.0,147.94,147.89,20.0]
[1718358780491,10.0,147.94,147.93,6.12]
[1718358780899,10.0,147.94,147.89,20.0]
[1718358781100,10.0,147.94,147.93,6.12]
[1718358782706,10.0,147.94,147.89,20.0]
[1718358782885,10.0,147.94,147.93,6.12]
[1718358785406,10.0,147.96,147.93,6.12]
[1718358785595,10.0,147.96,147.95,6.12]
[1718358785797,10.0,147.98,147.95,6.12]
[1718358785995,10.0,147.98,147.97,6.12]
[1718358786792,10.0,148.0,147.97,6.12]
[1718358787112,10.0,148.0,147.99,6.12]
[1718358787694,10.0,148.02,147.99,6.12]
[1718358787907,10.0,148.02,148.0,6.12]
[1718358792802,10.0,148.02,147.94,2.5009]
[1718358793140,10.0,148.02,148.01,6.12]
[1718358798922,55.0,148.02,147.98,6.12]
[1718358799127,45.0,148.01,147.98,6.12]
[1718358799625,10.0,148.0,147.98,6.12]
[1718358804024,45.0,147.99,147.98,6.12]
[1718358806863,10.0,147.98,147.94,20.0]
[1718358807032,10.0,147.98,147.96,6.12]
[1718358808746,10.0,147.98,147.97,6.12]
[1718358809950,55.0,147.98,147.97,6.12]
[1718358810141,55.0,147.98,147.93,20.0]
[1718358810332,10.0,147.96,147.93,20.0]
[1718358810533,10.0,147.96,147.95,6.12]
[1718358813657,10.0,147.96,147.9,8.2879773]
[1718358814174,10.0,147.96,147.93,6.12]
[1718358815463,10.0,147.96,147.94,6.12]
[1718358819460,10.0,147.96,147.89,8.27811516]
[1718358819682,10.0,147.96,147.93,6.12]
[1718358822469,10.0,147.94,147.93,6.12]
[1718358830790,10.0,147.96,147.93,6.12]
[1718358830964,10.0,147.96,147.95,6.12]
[1718358833698,10.0,147.96,147.94,6.12]
[1718358834061,10.0,147.96,147.93,6.12]
[1718358834490,10.0,147.96,147.88,23.7413]
[1718358834666,10.0,147.96,147.93,6.12]
[1718358835585,10.0,147.94,147.93,6.12]
[1718358838418,10.0,147.96,147.93,6.12]
[1718358838692,10.0,147.96,147.94,6.12]
[1718358841199,10.0,147.96,147.88,23.7413]
[1718358841200,10.0,147.96,147.93,6.12]
[1718358847194,10.0,147.96,147.94,6.12]
[1718358855595,10.0,147.96,147.93,6.12]
[1718358856220,10.0,147.94,147.88,21.2394]
[1718358856418,10.0,147.92,147.89,20.0]
[1718358856736,10.0,147.92,147.91,6.12]
[1718358857828,10.0,147.92,147.89,20.0]
[1718358858031,10.0,147.92,147.91,6.12]
[1718358860711,10.0,147.92,147.89,20.0]
[1718358860915,10.0,147.92,147.91,6.12]
[1718358866937,10.0,147.92,147.89,20.0]
[1718358867135,10.0,147.92,147.91,6.12]
[1718358868335,10.0,147.9,147.85,6.1948]
[1718358868652,10.0,147.9,147.89,6.12]
[1718358872733,12.5016,147.9,147.89,6.12]
[1718358876368,2.5016,147.9,147.89,6.12]
[1718358884858,10.0,147.92,147.85,6.1948]
[1718358885051,10.0,147.92,147.91,6.12]
[1718358886673,10.0,147.92,147.86,20.34]
[1718358886859,10.0,147.92,147.91,6.12]
[1718358891878,10.0,147.92,147.86,20.34]
[1718358892052,10.0,147.92,147.91,6.12]
[1718358892548,10.0,147.92,147.9,6.12]
[1718358897903,10.0,147.9,147.86,20.0]
[1718358898204,10.0,147.9,147.88,6.12]
[1718358899004,10.0,147.9,147.85,20.0]
[1718358899283,10.0,147.9,147.87,6.12]
[1718358899491,10.0,147.9,147.88,6.12]
[1718358899985,6.4348,147.93,147.85,20.0]
[1718358900197,16.1338,147.94,147.91,6.12]
[1718358901469,45.0,147.93,147.91,6.12]
[1718358901987,55.0,147.93,147.9,6.12]
[1718358905075,16.1338,147.94,147.85,31.54004396]
[1718358905076,16.1338,147.94,147.92,6.12]
[1718358909911,10.0,147.95,147.92,6.12]
[1718358915106,10.0,147.97,147.94,6.12]
[1718358917195,10.0,147.97,147.88,19.2122]
[1718358917396,10.0,147.97,147.93,6.12]
[1718358918318,10.0,147.97,147.89,0.34]
[1718358918516,10.0,147.97,147.93,6.12]
[1718358919010,10.0,147.95,147.93,6.12]
[1718358919530,10.0,147.97,147.94,6.12]
[1718358920025,10.0,147.95,147.88,16.5403]
[1718358920326,10.0,147.92,147.91,6.12]
[1718358920620,10.0,147.92,147.9,6.12]
[1718358921704,10.0,147.92,147.91,6.12]
[1718358922922,10.0,147.92,147.88,16.5403]
[1718358923129,10.0,147.92,147.91,6.12]
[1718358924333,10.0,147.92,147.88,16.5403]
[1718358924506,10.0,147.92,147.86,9.67778183]
[1718358924708,10.0,147.92,147.9,6.12]
[1718358924919,57.5065,147.96,147.91,6.12]
[1718358924920,10.0,147.94,147.91,6.12]
[1718358925121,26.1152,147.97,147.93,6.12]
[1718358925422,26.1152,147.97,147.88,2.5019]
[1718358925635,26.1152,147.97,147.93,6.12]
[1718358926439,10.0,147.95,147.93,6.12]
[1718358931235,10.0,147.95,147.89,0.17]
[1718358931442,10.0,147.95,147.93,6.12]
[1718358933431,10.0,147.95,147.89,20.34]
[1718358933633,10.0,147.95,147.93,6.12]
[1718358943586,10.0,147.95,147.89,20.34]
[1718358943754,10.0,147.95,147.93,6.12]
[1718358944155,10.0,147.91,147.84,31.5771]
[1718358944376,10.0,147.89,147.87,6.12]
[1718358945057,10.0,147.93,147.88,6.12]
[1718358945368,10.0,147.93,147.89,6.12]
[1718358945569,10.13650935,147.9,147.89,6.12]
[1718358946086,10.13650935,147.9,147.84,42.4445]
[1718358946261,10.13650935,147.9,147.89,6.12]
[1718358948252,10.13650357,147.9,147.89,6.12]
[1718358949589,10.13650357,147.9,147.84,42.4445]
[1718358949788,10.13650357,147.9,147.89,6.12]
[1718358949954,10.0,147.89,147.84,15.4619]
[1718358950279,20.13614017,147.89,147.86,6.12]
[1718358950990,10.13614017,147.88,147.87,6.12]
[1718358951361,20.13614017,147.89,147.87,6.12]
[1718358953173,10.0,147.87,147.82,2.503]
[1718358953382,10.0,147.87,147.82,22.503]
[1718358953562,10.0,147.87,147.86,6.12]
[1718358953885,10.13614017,147.89,147.86,6.12]
[1718358953886,20.13614017,147.89,147.86,6.12]
[1718358956371,10.0,147.84,147.8,1.49281092]
[1718358956583,10.0,147.84,147.78,16.255682]
[1718358956769,6.4729,147.85,147.76,175.50846278]
[1718358956770,10.0,147.82,147.76,175.50846278]
[1718358956984,10.0,147.82,147.74,8.98584153]
[1718358957187,10.0,147.82,147.79,6.12]
[1718358957986,10.0,147.82,147.75,2.5041]
[1718358958296,10.0,147.82,147.78,6.12]
[1718358958467,10.0,147.82,147.73,18.7951]
[1718358958797,10.0,147.82,147.78,6.12]
[1718358959503,10.0,147.82,147.73,18.7952]
[1718358959668,10.0,147.82,147.78,6.12]
[1718358959998,10.0,147.84,147.78,6.12]
[1718358960202,45.0,147.83,147.79,6.12]
[1718358961281,10.0,147.82,147.74,2.5043]
[1718358961480,10.0,147.82,147.79,6.12]
[1718358961792,10.0,147.82,147.78,6.12]
[1718358962891,10.0,147.82,147.74,22.5043]
[1718358963075,10.0,147.82,147.79,6.12]
[1718358963993,10.0,147.84,147.81,6.12]
[1718358964201,10.0,147.84,147.82,6.12]
[1718358964704,10.0,147.84,147.77,6.12]
[1718358964871,10.0,147.84,147.8,6.12]
[1718358969104,10.0,147.82,147.8,6.12]
[1718358969491,10.0,147.82,147.79,6.12]
[1718358969800,10.0,147.82,147.78,6.12]
[1718358970010,10.0,147.79,147.74,20.0]
[1718358970311,10.0,147.79,147.76,6.12]
[1718358970812,10.0,147.77,147.76,6.12]
[1718358971111,10.0,147.79,147.76,6.12]
[1718358971614,10.0,147.79,147.77,6.12]
[1718358973820,55.0,147.81,147.78,6.12]
[1718358974122,10.0,147.81,147.78,6.12]
[1718358974982,10.0,147.78,147.73,1.49351827]
[1718358975186,10.0,147.8,147.73,1.49351827]
[1718358975415,10.0,147.8,147.77,6.12]
[1718358976895,10.0,147.78,147.73,1.49351827]
[1718358977091,10.0,147.78,147.77,6.12]
[1718358977298,10.0,147.8,147.77,6.12]
[1718358977500,10.0,147.78,147.76,6.12]
[1718358977913,10.0,147.78,147.73,1.49351827]
[1718358978301,10.0,147.78,147.76,6.12]
[1718358979507,10.0,147.78,147.73,1.49351827]
[1718358979715,10.0,147.78,147.76,6.12]
[1718358979899,10.0,147.78,147.73,1.49351827]
[1718358980213,10.0,147.76,147.73,1.49351827]
[1718358980418,10.0,147.78,147.74,6.12]
[1718358980622,45.0,147.77,147.74,6.12]
[1718358980927,45.0,147.77,147.73,1.49351827]
[1718358981130,45.0,147.77,147.74,6.12]
[1718358981814,45.0,147.77,147.73,1.49351827]
[1718358982014,45.0,147.77,147.74,6.12]
[1718358983032,45.0,147.77,147.75,6.12]
[1718358983329,45.0,147.77,147.73,1.49351827]
[1718358983636,45.0,147.77,147.75,6.12]
[1718358984722,45.0,147.77,147.73,1.49351827]
[1718358984935,6.2893,147.8,147.75,6.12]
[1718358985237,15.3729,147.81,147.78,6.12]
[1718358986211,15.3729,147.81,147.73,1.49351827]
[1718358986412,45.0,147.8,147.77,6.12]
[1718358986627,55.0,147.8,147.73,1.49351827]
[1718358986836,10.0,147.78,147.73,1.49351827]
[1718358987235,10.0,147.78,147.74,6.12]
[1718358987437,45.0,147.77,147.74,6.12]
[1718358989139,45.0,147.77,147.73,1.49351827]
[1718358989339,10.0,147.76,147.73,7.61351827]
[1718358989639,10.0,147.76,147.73,1.49351827]
[1718358989817,10.0,147.76,147.74,6.12]
[1718358990017,10.0,147.78,147.73,1.49351827]
[1718358990212,10.0,147.78,147.75,6.12]
[1718358990618,10.0,147.78,147.74,6.12]
[1718358991848,10.0,147.78,147.73,1.49351827]
[1718358992015,45.0,147.77,147.74,6.12]
[1718358993354,10.0,147.76,147.73,1.49351827]
[1718358993513,10.0,147.76,147.74,6.12]
[1718358995026,10.0,147.76,147.75,6.12]
[1718358995532,10.0,147.76,147.74,6.12]
[1718358996636,10.0,147.76,147.73,1.49351827]
[1718358996835,10.0,147.76,147.74,6.12]
[1718358998147,10.0,147.76,147.73,1.49351827]
[1718358998361,10.0,147.76,147.74,6.12]
[1718358998734,10.0,147.76,147.75,6.12]
[1718358999851,10.0,147.76,147.73,1.49351827]
[1718359000067,45.0,147.75,147.71,20.0]
[1718359000239,45.0,147.75,147.73,6.12]
[1718359000953,10.0,147.76,147.7,44.48]
[1718359001261,10.0,147.76,147.7,46.985]
[1718359001565,10.0,147.76,147.7,44.48]
[1718359003738,10.0,147.76,147.7,46.985]
[1718359004171,10.0,147.76,147.7,44.48]
[1718359006040,10.0,147.76,147.7,46.9849]
[1718359008173,10.0,147.76,147.7,44.48]
[1718359014775,10.11908548,147.76,147.75,6.12]
[1718359014994,10.0,147.78,147.75,6.12]
[1718359015191,10.11745981,147.76,147.72,2.5047]
[1718359015391,10.11745981,147.76,147.75,6.12]
[1718359015787,10.11718943,147.76,147.75,6.12]
[1718359015977,10.11718943,147.77,147.75,6.12]
[1718359016177,10.11718943,147.77,147.76,6.12]
[1718359017379,20.11718943,147.78,147.76,6.12]
[1718359019272,10.0,147.78,147.76,6.12]
[1718359021588,10.0,147.78,147.77,6.12]
[1718359021895,20.11718943,147.8,147.77,6.12]
[1718359022068,20.11718943,147.8,147.72,2.5046]
[1718359022069,20.11718943,147.8,147.78,6.12]
[1718359022591,10.0,147.8,147.78,6.12]
[1718359024180,10.0,147.8,147.79,6.12]
[1718359025477,10.0,147.8,147.78,6.12]
[1718359026211,26.12038943,147.82,147.78,6.12]
[1718359027999,26.12038943,147.82,147.74,16.1176]
[1718359028299,26.12038943,147.82,147.77,6.12]
[1718359028470,45.0,147.81,147.77,6.12]
[1718359029677,10.0,147.8,147.77,6.12]
[1718359030091,10.0,147.77,147.75,6.12]
[1718359030305,45.0,147.79,147.75,6.12]
[1718359030800,10.0,147.78,147.75,6.12]
[1718359032073,45.0,147.79,147.76,6.12]
[1718359032309,45.0,147.8,147.76,6.12]
[1718359032690,45.0,147.8,147.72,2.5047]
[1718359032993,10.0,147.79,147.76,6.12]
[1718359033879,10.0,147.79,147.71,22.5047]
[1718359034085,10.0,147.77,147.75,6.12]
[1718359034282,10.0,147.79,147.71,20.0]
[1718359034493,10.0,147.79,147.75,6.12]
[1718359034975,10.0,147.79,147.71,22.5048]
[1718359035211,10.0,147.79,147.75,6.12]
[1718359037488,10.0,147.79,147.71,22.5048]
[1718359037689,10.0,147.79,147.75,6.12]
[1718359039099,10.0,147.79,147.76,6.12]
[1718359041290,10.0,147.79,147.73,2.5045]
[1718359041514,10.0,147.81,147.78,6.12]
[1718359048607,10.0,147.81,147.77,6.12]
[1718359049907,10.12448801,147.82,147.77,6.12]
[1718359050105,10.12448801,147.83,147.8,6.12]
[1718359050422,25.20178801,147.84,147.8,6.12]
[1718359050609,25.20178801,147.84,147.81,6.12]
[1718359051104,20.12448801,147.85,147.81,6.12]
[1718359052012,10.0,147.85,147.81,6.12]
[1718359054644,10.0,147.85,147.82,6.12]
[1718359055013,10.0,147.87,147.84,6.12]
[1718359055233,10.0,147.87,147.85,6.12]
[1718359055621,26.2254,147.92,147.86,6.12]
[1718359055825,6.776,147.98,147.91,6.12]
[1718359055826,16.2254,147.96,147.91,6.12]
[1718359056035,16.2254,147.96,147.92,6.12]
[1718359056235,26.2254,147.96,147.92,6.12]
[1718359056620,26.2254,147.96,147.91,6.12]
[1718359058322,45.0,147.95,147.91,6.12]
[1718359059709,10.0,147.94,147.91,6.12]
[1718359059916,10.0,147.92,147.85,16.43834882]
[1718359060118,10.0,147.92,147.87,6.12]
[1718359060559,10.0,147.92,147.89,6.12]
[1718359061066,10.0,147.92,147.9,6.12]
[1718359062522,55.0,147.95,147.86,2.5022]
[1718359062851,55.0,147.95,147.92,6.12]
[1718359063235,16.2254,147.96,147.93,6.12]
[1718359063624,10.0,147.97,147.94,6.12]
[1718359064045,10.0,147.97,147.93,6.12]
[1718359064256,10.0,147.97,147.88,6.4038]
[1718359064426,10.0,147.97,147.93,6.12]
[1718359064627,45.0,147.96,147.88,6.4038]
[1718359064847,10.0,147.95,147.91,6.12]
[1718359065087,10.0,147.91,147.89,6.12]
[1718359065254,10.0,147.93,147.89,6.12]
[1718359065453,16.12,147.95,147.89,6.12]
[1718359065654,45.0,147.94,147.9,6.12]
[1718359067261,45.0,147.94,147.91,6.12]
[1718359067568,45.0,147.94,147.9,6.12]
[1718359070080,10.0,147.97,147.93,6.12]
[1718359071163,10.0,147.95,147.93,6.12]
[1718359073684,10.0,147.95,147.92,6.12]
[1718359074776,10.0,147.95,147.93,6.12]
[1718359074972,10.0,147.97,147.94,6.12]
[1718359075513,10.0,147.97,147.89,17.7953]
[1718359075677,10.0,147.97,147.94,6.12]
[1718359078090,10.0,147.97,147.93,6.12]
[1718359078295,10.0,147.97,147.94,6.12]
[1718359082185,10.0,147.97,147.89,17.7953]
[1718359082385,10.0,147.97,147.94,6.12]
[1718359083006,10.0,147.95,147.89,15.2936]
[1718359083215,10.0,147.95,147.91,6.12]
[1718359083587,10.0,147.95,147.92,6.12]
[1718359088614,10.0,147.95,147.91,6.12]
[1718359091794,61.2442,147.93,147.89,6.12]
[1718359094405,10.0,147.93,147.9,6.12]
[1718359094720,16.5988,147.94,147.91,6.12]
[1718359094920,16.5988,147.94,147.85,9.1082]
[1718359095218,16.5988,147.94,147.9,6.12]
[1718359095593,16.5988,147.94,147.91,6.12]
[1718359099609,10.0,147.93,147.91,6.12]
[1718359100004,10.0,147.95,147.92,6.12]
[1718359100221,10.0,147.95,147.94,6.12]
[1718359100428,10.0,147.95,147.92,6.12]
[1718359100622,10.0,147.95,147.91,6.12]
[1718359101827,16.12,147.95,147.86,18.6321]
[1718359102032,45.0,147.94,147.9,6.12]
[1718359102401,10.0,147.93,147.9,6.12]
[1718359102627,10.0,147.93,147.89,6.12]
[1718359105016,25.9456,147.93,147.88,6.12]
[1718359105541,45.0,147.92,147.88,6.12]
[1718359106072,10.0,147.91,147.88,6.12]
[1718359106417,10.0,147.91,147.85,2.5025]
[1718359106635,51.0195,147.92,147.88,6.12]
[1718359107344,10.0,147.91,147.84,26.9825]
[1718359107648,10.0,147.91,147.88,6.12]
[1718359108023,10.0,147.91,147.85,20.0]
[1718359108224,10.0,147.91,147.88,6.12]
[1718359108624,51.0195,147.92,147.89,6.12]
[1718359108865,51.0195,147.92,147.85,22.5024]
[1718359109017,51.0195,147.92,147.88,6.12]
[1718359109946,10.0,147.91,147.88,6.12]
[1718359115423,10.0,147.91,147.89,6.12]
[1718359118119,10.0,147.91,147.85,22.5024]
[1718359118326,10.0,147.91,147.89,6.12]
[1718359119548,10.0,147.91,147.85,20.0]
[1718359119752,10.0,147.91,147.89,6.12]
[1718359119925,10.0,147.91,147.83,9.40359318]
[1718359120139,10.0,147.89,147.84,6.12]
[1718359120467,16.12,147.89,147.79,18.2042]
[1718359120634,16.12,147.89,147.83,6.12]
[1718359120833,16.4577,147.88,147.83,6.12]
[1718359121256,10.0,147.87,147.83,6.12]
[1718359121452,10.15115817,147.86,147.83,6.12]
[1718359121665,10.15115817,147.86,147.79,15.7007]
[1718359121867,10.15115817,147.86,147.84,6.12]
[1718359123136,20.15115817,147.87,147.84,6.12]
[1718359123835,10.15115817,147.86,147.84,6.12]
[1718359124035,10.15115817,147.86,147.83,6.12]
[1718359124368,20.15115817,147.87,147.83,6.12]
[1718359124935,20.15115817,147.87,147.79,15.7007]
[1718359125160,20.15115817,147.87,147.77,15.0806]
[1718359125161,10.0,147.84,147.77,2.5038]
[1718359125353,20.15115817,147.84,147.76,4.27140436]
[1718359125550,10.15115817,147.84,147.8,6.12]
[1718359125759,20.15115817,147.84,147.8,6.12]
[1718359126260,10.0,147.84,147.8,6.12]
[1718359126765,10.0,147.84,147.77,24.48]
[1718359126939,20.15115817,147.84,147.8,6.12]
[1718359127137,20.15115817,147.84,147.78,20.0]
[1718359127337,20.15115817,147.84,147.8,6.12]
[1718359127338,10.0,147.84,147.8,6.12]
[1718359128541,10.0,147.84,147.81,6.12]
[1718359130448,10.0,147.84,147.78,20.0]
[1718359133049,10.0,147.84,147.78,22.5037]
[1718359133269,10.0,147.84,147.78,20.0]
[1718359133674,61.27115817,147.86,147.78,20.0]
[1718359133675,71.27115817,147.86,147.78,20.0]
[1718359133973,10.0,147.84,147.78,22.5037]
[1718359134644,10.0,147.86,147.79,2.5034]
[1718359134846,10.0,147.86,147.83,6.12]
[1718359136156,10.0,147.86,147.82,6.12]
[1718359138481,10.0,147.86,147.78,22.5036]
[1718359138659,10.0,147.86,147.81,6.12]
[1718359139378,10.0,147.84,147.78,20.0]
[1718359139870,10.0,147.84,147.8,6.12]
[1718359140073,10.0,147.84,147.78,20.0]
[1718359140780,10.0,147.84,147.79,6.12]
[1718359141290,10.0,147.84,147.8,6.12]
[1718359141445,10.0,147.84,147.77,24.48]
[1718359141647,10.0,147.84,147.78,20.0]
[1718359144180,10.0,147.84,147.8,6.12]
[1718359144351,10.0,147.84,147.78,20.0]
[1718359144557,10.0,147.84,147.75,24.06690429]
[1718359144558,10.0,147.82,147.79,6.12]
[1718359145089,16.12,147.82,147.74,2.5042]
[1718359145263,10.0,147.82,147.77,6.12]
[1718359145776,10.0,147.8,147.77,6.12]
[1718359147987,10.0,147.82,147.73,17.23438216]
[1718359148158,10.0,147.82,147.78,6.12]
[1718359150085,10.0,147.8,147.77,6.12]
[1718359152688,10.0,147.8,147.73,10.65548216]
[1718359152992,10.0,147.8,147.76,6.12]
[1718359154891,10.0,147.8,147.74,20.0]
[1718359155075,10.0,147.78,147.75,6.12]
[1718359156662,10.0,147.78,147.76,6.12]
[1718359158609,10.0,147.78,147.75,6.12]
[1718359159976,16.5301,147.8,147.73,20.0]
[1718359160310,16.5301,147.8,147.79,6.12]
[1718359160598,16.5301,147.8,147.78,6.12]
[1718359162190,16.5301,147.8,147.77,6.12]
[1718359162909,16.5301,147.8,147.72,22.6746]
[1718359163207,16.5301,147.8,147.76,6.12]
[1718359164997,16.5301,147.8,147.78,6.12]
[1718359166518,16.5301,147.8,147.73,2.5044]
[1718359166729,10.0,147.79,147.77,6.12]
[1718359167218,10.0,147.79,147.76,6.12]
[1718359168932,10.0,147.79,147.77,6.12]
[1718359169113,10.0,147.79,147.73,2.5044]
[1718359169418,10.0,147.79,147.77,6.12]
[1718359174397,10.0,147.79,147.72,22.5046]
[1718359174601,20.12642089,147.79,147.75,6.12]
[1718359175698,10.12642089,147.78,147.75,6.12]
[1718359176022,10.0,147.79,147.75,6.12]
[1718359177937,20.12642089,147.79,147.75,6.12]
[1718359178319,20.12323356,147.79,147.75,6.12]
[1718359179006,10.0,147.77,147.75,6.12]
[1718359179210,10.0,147.77,147.72,20.0]
[1718359179523,10.0,147.77,147.75,6.12]
[1718359179900,10.12323356,147.78,147.75,6.12]
[1718359180101,10.12323356,147.79,147.76,6.12]
[1718359180531,36.65333356,147.8,147.76,6.12]
[1718359180848,10.12323356,147.79,147.76,6.12]
[1718359181161,36.65473496,147.8,147.76,6.12]
[1718359181312,10.12463496,147.79,147.76,6.12]
[1718359182146,36.65473496,147.8,147.76,6.12]
[1718359182325,10.12463496,147.79,147.76,6.12]
[1718359183340,10.12463496,147.78,147.72,20.0]
[1718359183641,10.12463496,147.78,147.75,6.12]
[1718359185017,10.12463496,147.78,147.76,6.12]
[1718359187013,10.12463496,147.78,147.72,22.5046]
[1718359187219,10.12463496,147.78,147.75,6.12]
[1718359187534,10.12463496,147.77,147.75,6.12]
[1718359188625,10.12463496,147.78,147.75,6.12]
[1718359188930,10.12463496,147.77,147.75,6.12]
[1718359189540,10.12463496,147.77,147.72,22.5046]
[1718359189541,10.12463496,147.77,147.72,20.0]
[1718359189713,26.5301,147.8,147.75,6.12]
[1718359189714,10.12463496,147.76,147.75,6.12]
[1718359190529,10.12463496,147.76,147.72,20.0]
[1718359190735,10.12463496,147.76,147.75,6.12]
[1718359194048,10.12463496,147.77,147.75,6.12]
[1718359194621,10.12463496,147.76,147.75,6.12]
[1718359195336,10.12463496,147.76,147.72,20.0]
[1718359195337,10.12463496,147.76,147.74,6.12]
[1718359196058,10.12881205,147.76,147.74,6.12]
[1718359196247,10.12881205,147.77,147.74,6.12]